bitfinex-derivatives/quotes_ETHF0:USTF0_20250928
["timestamp","ask_amount","ask_price","bid_price","bid_amount"]
[1759082354058,1.54761167,4041.9,4041.8,1.22039]
[1759082355755,0.96651167,4041.9,4041.8,1.22039]
[1759082356357,0.96651167,4041.9,4041.3,1.1131]
[1759082356358,0.434,4040.5,4040.4,0.3323]
[1759082356567,2.60178106,4040.5,4040.4,0.5558]
[1759082356754,1.52089626,4040.5,4040.4,0.5558]
[1759082358268,3.2078,4041.0,4040.9,1.22029]
[1759082358660,0.19863605,4041.4,4041.3,0.88795]
[1759082358856,0.2155,4041.4,4041.3,1.22025]
[1759082359164,0.73816753,4041.4,4041.3,1.22025]
[1759082360061,0.52266753,4041.4,4041.3,1.22025]
[1759082363364,1.27516753,4041.4,4041.3,1.22025]
[1759082367368,0.95666753,4041.4,4041.3,1.22025]
[1759082368875,0.52266753,4041.4,4041.3,5.7748784]
[1759082369076,3.4171,4042.1,4042.0,1.34247]
[1759082369776,0.5379,4042.1,4042.0,1.34247]
[1759082373776,0.7601,4042.1,4042.0,1.20977]
[1759082375678,0.7601,4042.1,4042.0,1.34247]
[1759082376168,0.4315,4042.1,4042.0,1.34247]
[1759082376367,0.2093,4042.1,4042.0,1.34247]
[1759082376572,0.2093,4042.4,4042.3,1.20974]
[1759082376771,1.0111,4042.4,4042.3,1.20974]
[1759082380978,1.53193096,4042.4,4042.3,1.20974]
[1759082391580,1.53327946,4042.4,4042.3,1.20974]
[1759082391984,1.28227946,4042.4,4042.3,1.20974]
[1759082392188,1.53327946,4042.4,4042.3,1.20974]
[1759082395085,1.53327946,4042.4,4042.3,0.97254]
[1759082395281,0.4342,4041.8,4041.7,0.9891]
[1759082395482,0.7459,4041.8,4041.7,1.2045]
[1759082395786,1.26807946,4041.8,4041.7,1.2045]
[1759082396785,1.26807946,4041.8,4041.7,0.9891]
[1759082397087,1.26807946,4041.8,4041.7,0.4452]
[1759082397488,0.7459,4041.6,4041.5,0.44522]
[1759082397685,1.51907946,4041.6,4041.5,0.77982]
[1759082398178,4.72687946,4041.6,4041.5,0.77982]
[1759082400988,4.72687946,4041.6,4041.5,0.44522]
[1759082401688,4.72687946,4041.6,4041.5,0.98912]
[1759082402390,4.72687946,4041.6,4041.5,1.32982]
[1759082402579,4.41517946,4041.6,4041.5,1.32982]
[1759082402982,4.72687946,4041.6,4041.5,1.32982]
[1759082403390,4.16417946,4041.6,4041.5,1.32982]
[1759082403584,4.41517946,4041.6,4041.5,1.32982]
[1759082404485,3.72997946,4041.6,4041.5,2.6766484]
[1759082405292,3.2078,4041.6,4041.5,2.6766484]
[1759082405785,3.2078,4041.6,4041.5,7.6766484]
[1759082406491,0.251,4042.2,4042.1,1.20446]
[1759082406696,0.251,4042.2,4042.0,1.23823]
[1759082406697,3.9537,4042.6,4042.5,1.32971]
[1759082406880,4.72647857,4042.6,4042.5,1.32971]
[1759082407288,3.94747857,4042.6,4042.5,1.32971]
[1759082407489,4.72647857,4042.6,4042.5,1.32971]
[1759082408088,4.16377857,4042.6,4042.5,1.32971]
[1759082408384,3.72957857,4042.6,4042.5,1.32971]
[1759082411287,4.27187857,4042.6,4042.5,1.32971]
[1759082411494,4.48577857,4042.6,4042.5,1.32971]
[1759082414097,4.48577857,4042.6,4042.5,0.44511]
[1759082414395,4.48577857,4042.6,4041.7,1.113]
[1759082414396,0.7629,4042.4,4042.3,0.44513]
[1759082414592,1.53567857,4042.4,4042.3,0.44513]
[1759082414787,1.53567857,4042.4,4041.8,0.3109]
[1759082414986,0.7629,4041.9,4041.8,0.96749]
[1759082415295,1.28201634,4041.9,4041.8,0.96749]
[1759082416502,1.28201634,4041.9,4041.8,0.44519]
[1759082417598,1.28201634,4041.9,4040.5,4.1373072]
[1759082417599,0.4385,4041.2,4041.1,0.75617]
[1759082417784,0.7629,4041.2,4041.1,0.96757]
[1759082417991,1.28201634,4041.2,4041.1,0.96757]
[1759082418196,1.28201634,4041.2,4041.1,1.19047]
[1759082418893,1.28201634,4041.2,4041.1,0.96757]
[1759082420089,0.7629,4041.2,4041.1,0.96757]
[1759082420399,1.28204812,4041.2,4041.1,0.96757]
[1759082422195,1.28204812,4041.2,4041.1,0.5223]
[1759082423601,1.28204812,4041.2,4041.1,0.7452]
[1759082425196,3.2078,4041.6,4041.5,0.8903]
[1759082425404,3.72664357,4041.6,4041.5,1.33552]
[1759082425801,0.51884357,4041.6,4041.5,1.33552]
[1759082426204,0.51884357,4041.6,4041.5,2.41598521]
[1759082427801,3.6844,4042.1,4042.0,1.33547]
[1759082428000,4.74129682,4042.1,4042.0,1.33547]
[1759082429601,4.74129682,4042.1,4042.0,0.7566]
[1759082429795,4.74129682,4042.1,4042.0,0.5397]
[1759082431292,0.7637,4041.6,4041.5,0.79122]
[1759082431606,0.7637,4041.6,4041.5,0.65752]
[1759082432100,0.7637,4041.6,4041.5,1.20182]
[1759082432307,0.2256,4041.9,4041.8,0.4292]
[1759082432498,4.0034,4042.1,4042.0,1.33547]
[1759082432697,4.52230283,4042.1,4042.0,1.33547]
[1759082432901,4.74140283,4042.1,4042.0,1.33547]
[1759082433403,4.74140283,4042.1,4042.0,1.20177]
[1759082434006,4.74140283,4042.1,4042.0,0.98487]
[1759082436602,5.82186804,4042.1,4042.0,0.98487]
[1759082440209,5.82186804,4042.1,4042.0,0.77257]
[1759082445111,0.1261,4042.0,4041.4,3.2078]
[1759082445310,1.97086521,4041.5,4041.4,3.65303]
[1759082445511,1.97086521,4041.5,4040.9,3.2078]
[1759082445512,2.74076804,4041.5,4040.9,3.2078]
[1759082445815,0.7637,4041.0,4040.9,3.7475]
[1759082446018,1.28260283,4041.0,4040.9,4.19279]
[1759082446218,1.40930283,4041.0,4040.9,0.44529]
[1759082446916,1.40930283,4041.0,4040.9,0.77269]
[1759082447113,0.51890283,4041.0,4040.9,1.20189]
[1759082447312,0.251,4041.7,4041.3,1.20185]
[1759082447617,0.96462,4041.6,4041.5,1.33552]
[1759082447818,1.28362,4041.6,4041.5,1.33552]
[1759082449221,0.96462,4041.6,4041.5,1.33552]
[1759082450318,0.74552,4041.6,4041.5,2.41598521]
[1759082450519,0.51992,4041.6,4041.5,2.41598521]
[1759082452015,0.96462,4041.6,4041.5,1.11862]
[1759082452220,1.28362,4041.6,4041.5,0.77262]
[1759082452518,1.28362,4041.6,4041.5,0.98492]
[1759082454924,1.28362,4041.6,4041.5,1.33432]
[1759082457130,1.53462,4041.6,4041.5,1.33432]
[1759082460633,0.99652,4041.6,4041.5,1.33432]
[1759082461127,1.30482,4041.6,4041.5,1.33432]
[1759082461430,1.53162,4041.6,4041.5,1.33432]
[1759082462228,1.53162,4041.6,4041.5,1.20182]
[1759082463130,1.53162,4041.6,4041.5,1.33432]
[1759082466131,0.51992,4041.6,4041.5,4.79312]
[1759082466329,0.51992,4041.6,4041.5,5.87358521]
[1759082466535,0.51992,4041.6,4041.5,4.79312]
[1759082471129,0.74102,4041.6,4041.5,5.87358521]
[1759082471329,1.28972,4041.6,4041.5,5.87358521]
[1759082471737,0.96192,4041.6,4041.5,5.87358521]
[1759082473044,1.28972,4041.6,4041.5,2.53328521]
[1759082473850,0.96192,4041.6,4041.5,2.65658521]
[1759082475043,0.74102,4041.6,4041.5,2.65658521]
[1759082475247,0.51992,4041.6,4041.5,2.65658521]
[1759082478039,0.51992,4041.6,4041.5,5.86438521]
[1759082481646,0.74252,4041.6,4041.5,5.86438521]
[1759082483254,1.07032,4041.6,4041.5,2.65658521]
[1759082484046,0.74252,4041.6,4041.5,2.65658521]
[1759082485553,0.51992,4041.6,4041.5,2.65658521]
[1759082486550,0.5517,4041.8,4041.7,0.8945]
[1759082486858,0.73383589,4041.8,4041.7,1.2324]
[1759082489744,1.07183589,4041.8,4041.7,1.2324]
[1759082489948,1.29003589,4041.8,4041.7,1.2324]
[1759082494052,1.29003589,4041.8,4041.6,0.44521]
[1759082494260,1.29003589,4041.7,4041.6,1.00951]
[1759082494460,1.29003589,4041.7,4041.6,1.23241]
[1759082495367,0.73383589,4041.7,4041.6,1.23241]
[1759082495557,0.52013589,4041.7,4041.6,1.23241]
[1759082495754,0.52013589,4041.7,4041.6,0.89451]
[1759082496254,0.52013589,4041.8,4041.6,0.89451]
[1759082496453,0.52013589,4041.7,4041.6,2.2409218]
[1759082496858,3.2078,4041.9,4041.6,2.2409218]
[1759082496859,3.2078,4041.9,4041.8,0.44519]
[1759082497162,3.72796741,4041.9,4041.8,1.23239]
[1759082499864,3.94166741,4041.9,4041.8,1.23239]
[1759082503261,4.27966741,4041.9,4041.8,1.23239]
[1759082503863,4.49786741,4041.9,4041.8,1.23239]
[1759082504065,4.49789437,4041.9,4041.8,1.23239]
[1759082509269,4.49789437,4041.9,4041.8,0.44519]
[1759082519377,4.49789437,4041.9,4041.8,1.18339]
[1759082520574,4.49789437,4041.9,4041.5,0.1307]
[1759082520575,0.8571,4041.5,4041.4,0.44523]
[1759082520767,1.37729437,4041.5,4041.4,0.44523]
[1759082521571,1.03829437,4041.5,4041.4,1.18343]
[1759082521771,0.52019437,4041.5,4041.4,1.18343]
[1759082521972,3.4179,4041.9,4041.8,0.7382]
[1759082522172,3.93801202,4041.9,4041.8,0.7382]
[1759082522469,4.24601202,4041.9,4041.8,0.7382]
[1759082522672,3.93801202,4041.9,4041.8,0.7382]
[1759082522876,3.72791202,4041.9,4041.8,0.7382]
[1759082523471,0.52011202,4041.9,4041.8,0.7382]
[1759082525977,1.25051202,4041.9,4041.8,0.7382]
[1759082526174,0.94251202,4041.9,4041.8,0.7382]
[1759082526568,1.25051202,4041.9,4041.8,0.7382]
[1759082527678,0.94251202,4041.9,4041.8,0.7382]
[1759082528077,0.73021202,4041.9,4041.8,0.7382]
[1759082528976,0.52011202,4041.9,4041.8,2.0846118]
[1759082529379,3.4179,4042.9,4042.8,0.66918]
[1759082529576,3.4179,4042.9,4042.8,1.18328]
[1759082530078,3.2078,4042.9,4042.8,1.43328]
[1759082530277,3.2078,4042.9,4042.8,6.43328]
[1759082531674,0.00214358,4043.0,4042.9,0.7718]
[1759082531877,0.00214358,4043.0,4042.9,2.1182118]
[1759082532473,3.2078,4043.5,4043.0,0.44506]
[1759082532680,3.422,4043.5,4043.4,1.21681]
[1759082532881,3.961,4043.5,4043.4,1.21681]
[1759082533579,3.9637622,4043.5,4043.4,1.2197943]
[1759082534578,3.9637622,4043.5,4043.4,1.4697943]
[1759082535488,3.9637622,4043.5,4043.4,1.2540943]
[1759082535690,4.0903622,4043.5,4043.4,0.6979943]
[1759082536178,4.0903622,4043.5,4043.4,1.0315943]
[1759082537679,0.8825622,4043.5,4043.4,1.0315943]
[1759082539189,0.7559622,4043.5,4043.4,1.2540943]
[1759082543889,0.0027622,4043.5,4043.4,1.4697943]
[1759082544485,0.5483,4044.2,4044.1,0.44494]
[1759082544692,0.7558,4044.2,4044.1,0.97214]
[1759082545187,0.7558,4044.2,4044.1,1.18394]
[1759082545592,0.42734732,4044.2,4044.1,1.18394]
[1759082545788,0.00204732,4044.2,4044.1,2.5303518]
[1759082547899,0.00204732,4044.2,4044.1,2.7803518]
[1759082550199,0.00204732,4044.2,4044.1,2.51287688]
[1759082550404,3.9636,4045.0,4044.9,1.18385]
[1759082551102,3.9636,4045.0,4044.9,0.3157]
[1759082551398,3.96620099,4045.0,4044.9,0.3157]
[1759082551603,0.538,4044.4,4044.3,0.739]
[1759082551789,0.7558,4044.4,4044.3,0.989]
[1759082551992,0.7558,4044.4,4044.3,1.43392]
[1759082555502,0.7558,4044.4,4044.1,0.44493]
[1759082555696,0.7558,4043.9,4043.8,0.44496]
[1759082557101,0.7558,4043.9,4043.7,0.3157]
[1759082557292,0.7558,4043.9,4043.4,0.4479943]
[1759082557293,0.7558,4043.5,4043.4,0.4479943]
[1759082557495,2.47309586,4043.5,4043.4,0.4479943]
[1759082557790,1.96123688,4043.5,4043.4,0.7636943]
[1759082557989,1.83473688,4043.5,4043.4,0.3186843]
[1759082558197,2.34660145,4043.5,4043.4,0.3186843]
[1759082558398,1.26766457,4043.5,4043.4,0.5301843]
[1759082558703,0.7558,4043.5,4043.4,0.7419843]
[1759082558899,0.3305,4043.8,4043.4,1.29372118]
[1759082559100,3.9636,4044.0,4043.9,1.18396]
[1759082559312,4.47574545,4044.0,4043.9,0.5272]
[1759082559802,4.57754545,4044.0,4043.8,0.44497]
[1759082560002,1.26794545,4043.9,4043.8,0.76067]
[1759082560509,0.51214545,4043.9,4043.8,1.18397]
[1759082560801,0.7558,4044.4,4044.3,0.5272]
[1759082560998,1.26830078,4044.4,4044.3,0.5272]
[1759082563407,0.7558,4044.3,4044.2,0.76062]
[1759082563708,1.26830078,4044.3,4044.2,0.76062]
[1759082563906,0.51250078,4044.3,4044.2,1.18392]
[1759082564110,0.7558,4044.9,4044.8,0.97206]
[1759082564305,1.26838162,4044.9,4044.8,0.97206]
[1759082564513,1.51838162,4044.9,4044.8,1.18386]
[1759082564911,1.26838162,4044.9,4044.8,1.18386]
[1759082567316,0.73038162,4044.9,4044.8,1.18386]
[1759082567518,0.51258162,4044.9,4044.8,1.18386]
[1759082568009,0.73038162,4044.9,4044.8,1.18386]
[1759082569915,1.26838162,4044.9,4044.8,1.18386]
[1759082570115,1.51838162,4044.9,4044.8,0.65636]
[1759082570314,1.51838162,4044.9,4044.8,0.97206]
[1759082572217,0.76258162,4044.9,4044.8,1.18386]
[1759082572815,0.51258162,4044.9,4044.8,1.18386]
[1759082573921,0.73038162,4044.9,4044.8,1.18386]
[1759082577934,1.20728162,4044.9,4044.7,0.44487]
[1759082578120,0.7624,4044.2,4044.1,0.76344]
[1759082578321,1.27498162,4044.2,4044.1,0.98244]
[1759082578916,2.3539185,4044.2,4044.1,0.44494]
[1759082579123,2.3539185,4044.2,4044.1,0.76344]
[1759082579828,2.35384676,4044.2,4044.1,0.76344]
[1759082581131,0.51250988,4044.2,4044.1,2.27817688]
[1759082581330,3.2078,4044.5,4044.4,1.1992]
[1759082581532,3.93064056,4044.5,4044.4,1.1992]
[1759082584423,3.93064056,4044.5,4044.4,2.27813688]
[1759082584628,3.72024056,4044.5,4044.4,2.27813688]
[1759082585821,5.56157744,4044.5,4044.4,0.5375]
[1759082586420,4.48264056,4044.5,4044.4,0.5375]
[1759082588227,4.73264056,4044.5,4044.4,0.7543]
[1759082588431,0.51244056,4044.5,4044.4,0.7543]
[1759082589018,3.46040099,4045.0,4044.5,1.11224]
[1759082589323,3.89770099,4045.0,4044.9,1.19915]
[1759082589630,4.73565098,4045.0,4044.9,1.19915]
[1759082589929,0.95275098,4045.0,4044.9,1.19915]
[1759082590232,0.51545098,4045.0,4044.9,1.19915]
[1759082592229,0.5154654,4045.0,4044.9,1.19915]
[1759082592622,0.00260099,4045.0,4044.9,1.19915]
[1759082594232,0.7605,4045.9,4045.8,0.44475]
[1759082594434,0.7605,4045.9,4045.8,2.26608688]
[1759082594435,0.73494477,4045.9,4045.8,2.26608688]
[1759082595231,0.73776884,4045.9,4045.8,2.26608688]
[1759082596230,0.73776884,4045.9,4045.8,1.18715]
[1759082596427,1.27606884,4045.9,4045.8,0.44475]
[1759082597027,1.27606884,4045.9,4045.6,0.44476]
[1759082597228,0.7605,4045.7,4045.6,0.44476]
[1759082597430,1.27324477,4045.7,4045.6,0.44476]
[1759082598936,0.8872,4045.5,4045.4,0.44478]
[1759082599132,2.47888165,4045.5,4045.4,0.44478]
[1759082599834,5.37158165,4045.5,4045.3,0.4448]
[1759082600033,1.27324477,4045.4,4045.3,0.4448]
[1759082602737,1.27324477,4045.4,4045.3,0.9707]
[1759082603037,1.20814477,4045.4,4045.3,2.26613688]
[1759082603537,1.20814477,4045.4,4045.3,0.4448]
[1759082603538,1.27324477,4045.4,4045.3,0.4448]
[1759082605937,1.52324477,4045.4,4045.3,0.4448]
[1759082606640,0.5305,4044.9,4044.8,0.2049]
[1759082606833,1.25276761,4044.9,4044.8,0.2049]
[1759082607333,1.50276761,4044.9,4044.8,0.44486]
[1759082607838,1.50276761,4044.9,4044.8,1.19206]
[1759082608033,1.18666761,4044.9,4044.8,1.19206]
[1759082608432,1.50276761,4044.9,4044.8,1.19206]
[1759082613438,0.72586761,4044.9,4044.8,1.19206]
[1759082613642,0.51146761,4044.9,4044.8,1.19206]
[1759082618946,0.72586761,4044.9,4044.8,1.19206]
[1759082620043,1.04196761,4044.9,4044.8,1.19206]
[1759082620342,1.25276761,4044.9,4044.8,1.19206]
[1759082623943,1.25276761,4044.9,4044.8,0.44486]
[1759082624147,0.7413,4044.4,4044.3,0.44491]
[1759082624447,1.25276761,4044.4,4044.3,0.97351]
[1759082625242,4.14446761,4044.4,4044.2,0.3237]
[1759082625539,0.7413,4044.2,4044.1,0.44494]
[1759082625738,0.72586761,4044.2,4044.1,1.19214]
[1759082629040,0.51146761,4044.2,4044.1,1.19214]
[1759082629239,3.2078,4044.4,4044.3,1.19212]
[1759082629445,3.2078,4044.4,4044.3,2.53660908]
[1759082629842,0.5661,4045.3,4044.3,2.53660908]
[1759082630047,3.2078,4045.0,4044.9,1.19205]
[1759082630240,3.7205619,4045.0,4044.9,1.19205]
[1759082630458,0.5127619,4045.0,4044.9,1.19205]
[1759082630644,0.2144,4045.2,4045.1,0.44483]
[1759082630943,0.72712033,4045.2,4045.1,0.86833]
[1759082631451,0.72712033,4045.2,4045.1,1.19203]
[1759082632345,0.51272033,4045.2,4045.1,1.19203]
[1759082636247,0.73792033,4045.2,4045.1,1.19203]
[1759082636747,0.51272033,4045.2,4045.1,1.19203]
[1759082637047,0.25282407,4045.9,4045.8,0.44475]
[1759082637346,1.54556722,4045.9,4045.8,1.21495]
[1759082637551,1.29556722,4045.9,4045.8,1.21495]
[1759082638446,0.96266722,4045.9,4045.8,1.21495]
[1759082639645,1.29556722,4045.9,4045.8,1.21495]
[1759082640844,0.74066722,4045.9,4045.8,1.21495]
[1759082641044,0.51546722,4045.9,4045.8,2.55943908]
[1759082641244,0.00282407,4045.9,4045.8,1.21495]
[1759082641450,0.00282407,4045.9,4045.8,2.55943908]
[1759082642648,0.00282407,4045.9,4045.8,1.21495]
[1759082642955,0.22802407,4045.9,4045.8,1.21495]
[1759082645048,0.78292407,4045.9,4045.8,1.21495]
[1759082645248,0.45002407,4045.9,4045.8,1.21495]
[1759082645652,0.78292407,4045.9,4045.8,1.21495]
[1759082646354,0.78292407,4045.9,4045.8,0.3332]
[1759082646747,1.29423164,4045.9,4045.6,0.44477]
[1759082646942,0.3329,4045.8,4045.7,0.44476]
[1759082647143,0.7801,4045.8,4045.7,0.77796]
[1759082647548,0.7801,4045.8,4045.3,3.2078]
[1759082647855,0.7801,4045.5,4045.4,0.77799]
[1759082648252,0.7801,4045.5,4045.4,0.99119]
[1759082648756,0.7801,4045.5,4045.4,1.21499]
[1759082649451,0.4472,4045.5,4045.4,1.21499]
[1759082649860,0.2252,4045.5,4045.4,1.21499]
[1759082650254,0.00282407,4045.9,4045.7,0.44476]
[1759082650566,0.73649298,4045.8,4045.7,0.88176]
[1759082650861,1.29139298,4045.8,4045.7,1.21496]
[1759082653454,0.95849298,4045.8,4045.7,1.21496]
[1759082653659,1.28449298,4045.8,4045.7,1.21496]
[1759082654551,0.95849298,4045.8,4045.7,1.21496]
[1759082654756,1.28449298,4045.8,4045.7,1.21496]
[1759082655859,0.95849298,4045.8,4045.7,1.21496]
[1759082656063,0.00282407,4045.9,4045.8,0.7322]
[1759082656360,0.00282407,4045.9,4045.8,5.53448908]
[1759082659661,3.4316,4046.7,4046.6,1.17686]
[1759082659863,3.94347689,4046.7,4046.6,1.17686]
[1759082660364,4.47657689,4046.7,4046.6,1.17686]
[1759082660665,4.47926856,4046.7,4046.6,1.18005438]
[1759082661366,4.47926856,4046.7,4046.6,0.00319438]
[1759082662265,4.72926856,4046.7,4046.6,0.00319438]
[1759082666273,4.72926856,4046.7,4046.6,0.33359438]
[1759082666768,4.47926856,4046.7,4046.6,0.77129438]
[1759082666966,4.15326856,4046.7,4046.6,0.77129438]
[1759082667972,3.94616856,4046.7,4046.6,0.77129438]
[1759082668872,0.73836856,4046.7,4046.6,0.77129438]
[1759082670268,0.51456856,4046.7,4046.6,0.77129438]
[1759082670871,0.73416856,4046.7,4046.6,0.77129438]
[1759082672375,1.06666856,4046.7,4046.6,1.84910392]
[1759082672575,1.27986856,4046.7,4046.6,1.84910392]
[1759082672775,1.27986856,4046.7,4046.6,0.77129438]
[1759082673871,1.27986856,4046.7,4046.6,0.54629438]
[1759082675575,1.27986856,4046.7,4046.6,0.77129438]
[1759082675777,1.27986856,4046.7,4046.6,0.00319438]
[1759082685585,1.27986856,4046.7,4046.6,0.44785438]
[1759082686790,1.27986856,4046.7,4046.6,0.77825438]
[1759082691204,4.48766856,4046.7,4046.6,0.44785438]
[1759082696005,4.73766856,4046.7,4046.6,0.44785438]
[1759082696407,4.48766856,4046.7,4046.6,0.44785438]
[1759082696608,4.73766856,4046.7,4046.6,0.78495438]
[1759082697301,4.73766856,4046.7,4046.6,0.44785438]
[1759082699512,4.73766856,4046.7,4046.6,0.00319438]
[1759082699513,6.2601281,4046.7,4046.6,0.00319438]
[1759082700800,11.2601281,4046.7,4046.6,0.00319438]
[1759082701007,0.5581,4045.5,4045.3,3.2078]
[1759082701206,1.52007689,4045.4,4045.3,3.6526]
[1759082701412,1.52007689,4045.4,4045.3,0.7819]
[1759082702115,1.52007689,4045.4,4045.3,0.44662802]
[1759082703208,1.52007689,4045.4,4045.3,0.78372802]
[1759082703612,1.52007689,4045.4,4045.3,0.44662802]
[1759082703815,4.72787689,4045.4,4045.3,0.44662802]
[1759082704616,4.72787689,4045.4,4045.3,0.78372802]
[1759082705616,4.72787689,4045.4,4045.3,1.00182802]
[1759082705617,1.52007689,4045.4,4045.3,1.00182802]
[1759082707723,4.72787689,4045.4,4045.3,0.44662802]
[1759082708618,4.72787689,4045.4,4045.3,0.00182802]
[1759082709119,9.72787689,4045.4,4045.3,0.00182802]
[1759082710020,9.72787689,4045.4,4044.3,3.2078]
[1759082710021,0.3243,4044.8,4044.3,3.2078]
[1759082710226,0.863,4044.5,4044.4,0.4449]
[1759082710417,2.70197084,4044.5,4044.1,0.3371]
[1759082710616,2.70197084,4044.5,4044.1,0.78203]
[1759082710617,0.7582,4044.2,4044.1,0.78203]
[1759082710818,1.0082,4044.2,4044.1,0.78203]
[1759082711018,1.0082,4044.2,4044.1,0.78423763]
[1759082711419,2.59701099,4044.2,4044.1,0.00220763]
[1759082714422,1.51920145,4044.2,4044.1,0.00220763]
[1759082714821,6.51920145,4044.2,4044.1,0.00220763]
[1759082717327,0.44493,4044.1,4043.5,0.7605]
[1759082717534,5.50029954,4043.6,4043.5,0.3155]
[1759082717832,5.75029954,4043.6,4043.5,0.3155]
[1759082718535,5.75029954,4043.6,4043.5,0.31788791]
[1759082718536,5.75255529,4043.6,4043.5,0.31788791]
[1759082718830,5.75255529,4043.6,4043.5,0.00238791]
[1759082719031,11.26294444,4043.6,4043.5,0.00238791]
[1759082719328,11.26294444,4043.6,4042.8,0.3155]
[1759082719329,0.44506,4042.9,4042.8,0.3155]
[1759082719633,0.44506,4042.9,4042.3,3.2078]
[1759082719634,0.7697,4042.6,4042.5,0.5216]
[1759082719828,1.0197,4042.6,4042.5,0.5216]
[1759082720029,2.09750954,4042.6,4042.5,0.5216]
[1759082720232,0.2188,4042.2,4042.1,0.98055]
[1759082720437,0.7697,4042.2,4042.1,0.74393444]
[1759082721930,0.2232,4042.9,4042.8,0.44507]
[1759082722134,3.2078,4043.0,4042.8,0.87107]
[1759082722336,3.2078,4043.0,4042.9,0.7415]
[1759082723133,3.9775,4043.0,4042.9,0.7415]
[1759082725842,3.4578,4043.0,4042.9,0.7415]
[1759082726940,0.462,4043.0,4042.9,0.7415]
[1759082727141,0.6706,4043.0,4042.9,0.7415]
[1759082727341,4.197,4043.0,4042.9,0.7415]
[1759082728237,3.8784,4043.0,4042.9,0.7415]
[1759082728541,4.197,4043.0,4042.9,0.7415]
[1759082729543,3.947,4043.0,4042.9,0.7415]
[1759082729733,4.197,4043.0,4042.9,0.7415]
[1759082732241,4.70807011,4043.0,4042.9,0.7415]
[1759082734339,4.51387011,4043.0,4042.2,0.3251]
[1759082734534,4.51387011,4043.0,4042.2,0.98794]
[1759082734535,0.5272,4042.3,4042.2,0.98794]
[1759082734735,0.9892,4042.3,4042.1,0.44757444]
[1759082734935,1.25069854,4042.2,4042.1,0.99037444]
[1759082735342,1.25069854,4042.2,4042.1,0.54523444]
[1759082735533,0.51149854,4042.2,4042.1,0.76253444]
[1759082735734,0.5306,4042.8,4042.7,0.435]
[1759082735934,0.5306,4042.8,4042.7,0.7601]
[1759082735935,1.29215201,4042.8,4042.7,0.7601]
[1759082736738,1.50075201,4042.8,4042.7,0.7601]
[1759082744649,0.93215201,4042.8,4042.7,0.7601]
[1759082744845,0.72355201,4042.8,4042.7,0.7601]
[1759082745347,0.93215201,4042.8,4042.7,0.3251]
[1759082745554,0.93215201,4042.8,4042.6,0.44509]
[1759082745753,1.50075201,4042.7,4042.6,0.77019]
[1759082746149,1.50075201,4042.7,4042.6,0.98789]
[1759082747153,1.50075201,4042.7,4042.6,0.44509]
[1759082748448,0.76155201,4042.7,4042.6,1.20519]
[1759082748750,1.50075201,4042.7,4042.6,1.20519]
[1759082751359,0.51155201,4042.7,4042.6,1.20519]
[1759082751545,0.25,4042.9,4042.8,1.20517]
[1759082751751,0.76376756,4042.9,4042.8,1.20517]
[1759082753257,0.97576756,4042.9,4042.8,1.20517]
[1759082753459,1.29436756,4042.9,4042.8,1.20517]
[1759082753661,1.50296756,4042.9,4042.8,1.20517]
[1759082760268,0.51376756,4042.9,4042.8,1.20517]
[1759082760568,0.51376756,4042.9,4042.8,6.20517]
[1759082761361,0.51376756,4042.9,4042.8,1.20517]
[1759082763471,0.5552,4043.2,4043.1,0.87364]
[1759082763674,1.27299231,4043.2,4043.1,1.21134]
[1759082766075,0.73619231,4043.2,4043.1,1.21134]
[1759082766275,0.76309231,4043.2,4043.1,1.21134]
[1759082766572,0.51309231,4043.2,4043.1,1.21134]
[1759082770771,0.73619231,4043.2,4043.1,1.21134]
[1759082773881,1.05339231,4043.2,4043.1,0.7663]
[1759082774180,0.7476,4042.7,4042.6,0.99239]
[1759082774385,1.26069231,4042.7,4042.6,0.99239]
[1759082775382,1.26069231,4042.7,4042.6,0.5473]
[1759082775684,0.2076,4042.3,4042.2,0.3385]
[1759082775884,0.4304,4042.3,4042.2,0.766]
[1759082776189,0.94349231,4042.3,4042.2,0.766]
[1759082776572,4.46849231,4042.3,4042.2,0.3385]
[1759082777985,4.46849231,4042.3,4042.2,0.766]
[1759082782690,4.15129231,4042.3,4042.2,0.766]
[1759082783091,3.92849231,4042.3,4042.2,0.766]
[1759082783290,1.34576745,4042.8,4042.3,1.11283]
[1759082783291,3.2078,4042.8,4042.3,1.11283]
[1759082783492,3.2078,4042.8,4042.7,1.21109]
[1759082783791,3.72011845,4042.8,4042.7,1.21109]
[1759082785695,3.94681845,4042.8,4042.7,1.21109]
[1759082785887,0.73901845,4042.8,4042.7,1.21109]
[1759082786394,0.51231845,4042.8,4042.7,1.21109]
[1759082786590,0.25,4043.0,4042.9,0.44506]
[1759082786794,0.4767,4043.0,4042.9,0.87366]
[1759082786987,0.9889891,4043.0,4042.9,1.19786]
[1759082787188,0.7389891,4043.0,4042.9,1.19786]
[1759082787393,0.5122891,4043.0,4042.9,1.19786]
[1759082788989,0.5122891,4043.0,4042.9,4.40566]
[1759082789189,0.798,4043.3,4043.2,1.19783]
[1759082789495,1.31018604,4043.3,4043.2,1.19783]
[1759082789893,0.73888604,4043.3,4043.2,1.19783]
[1759082790892,1.00785575,4043.6,4043.5,1.0033]
[1759082791095,1.52000237,4043.6,4043.5,1.3275]
[1759082794394,1.52000237,4043.6,4043.5,0.445]
[1759082794697,1.52000237,4043.6,4043.5,0.7692]
[1759082800705,1.52000237,4043.6,4043.5,0.9791]
[1759082801707,1.27000237,4043.6,4043.5,0.9791]
[1759082801906,1.52000237,4043.6,4043.5,0.9791]
[1759082802706,1.52000237,4043.6,4043.5,1.3275]
[1759082805106,0.94870237,4043.6,4043.5,1.3275]
[1759082805306,3.2078,4044.3,4044.2,1.19772]
[1759082805602,3.2078,4044.3,4044.2,2.27737777]
[1759082806301,3.21074144,4044.3,4044.2,2.27737777]
[1759082806501,0.00294144,4044.3,4044.2,2.27737777]
[1759082808907,0.22964144,4044.3,4044.2,1.19772]
[1759082811710,0.00294144,4044.3,4044.2,1.19772]
[1759082811911,0.00294144,4044.3,4044.2,7.52737777]
[1759082812210,1.44e-06,4044.3,4044.2,7.52737777]
[1759082817217,3.421,4045.3,4045.2,0.87641]